bitfinex-derivatives/quotes_BTCF0:USTF0_20210404
["timestamp","ask_amount","ask_price","bid_price","bid_amount"]
[1617527671439,3.30832611,57565.0,57564.0,1.61981228]
[1617527671637,3.67478296,57565.0,57564.0,1.12415762]
[1617527676844,0.97908296,57565.0,57564.0,1.12415762]
[1617527677746,0.97908296,57565.0,57564.0,3.86175762]
[1617527678145,0.97908296,57565.0,57564.0,1.12415762]
[1617527678546,0.97908296,57565.0,57564.0,1.21582698]
[1617527678948,0.97908296,57565.0,57564.0,1.12415762]
[1617527679349,4.23158296,57565.0,57564.0,1.12415762]
[1617527682550,5.23158296,57565.0,57564.0,1.12415762]
[1617527683250,5.67942383,57565.0,57564.0,0.68798152]
[1617527686258,6.17942383,57565.0,57564.0,0.68798152]
[1617527686660,7.17942383,57565.0,57564.0,0.68798152]
[1617527686862,7.68834383,57565.0,57564.0,0.35687136]
[1617527687059,7.68834383,57565.0,57560.0,0.35798848]
[1617527687260,0.0524,57564.0,57560.0,0.35798848]
[1617527687460,0.0524,57564.0,57558.0,0.35813918]
[1617527687660,1.7,57560.0,57558.0,0.35813918]
[1617527687861,1.7,57560.0,57540.0,0.09168651]
[1617527687862,1.7,57558.0,57551.0,0.62733873]
[1617527688262,0.2,57551.0,57550.0,0.35737904]
[1617527688663,0.50460319,57551.0,57550.0,0.35737904]
[1617527688863,0.50460319,57551.0,57550.0,0.62737904]
[1617527689062,3.68640803,57551.0,57550.0,0.68850489]
[1617527693370,3.68133077,57551.0,57550.0,0.68850489]
[1617527694370,3.68640358,57551.0,57550.0,0.68850489]
[1617527695674,3.68133077,57551.0,57550.0,0.68850489]
[1617527696576,3.67828711,57551.0,57550.0,0.68850489]
[1617527696975,3.67615655,57551.0,57550.0,0.68850489]
[1617527697475,3.6782871,57551.0,57550.0,0.68850489]
[1617527697876,3.68133077,57551.0,57550.0,0.68850489]
[1617527698478,0.31243077,57551.0,57550.0,0.68850489]
[1617527698679,0.10938619,57551.0,57550.0,3.76400489]
[1617527699082,0.00212964,57551.0,57550.0,3.76400489]
[1617527699279,0.00212957,57552.0,57550.0,3.76400489]
[1617527699681,0.36516981,57559.0,57551.0,0.85222573]
[1617527699682,0.00212948,57557.0,57551.0,0.85222573]
[1617527699982,0.00517159,57558.0,57551.0,0.85222573]
[1617527699983,0.00212934,57560.0,57556.0,0.7906148]
[1617527700181,0.00212934,57560.0,57556.0,0.8993548]
[1617527700380,0.00212934,57560.0,57557.0,0.27]
[1617527700582,0.00212934,57562.0,57559.0,0.35564374]
[1617527700982,0.00212934,57562.0,57561.0,0.35564215]
[1617527701381,0.00212934,57562.0,57561.0,0.42675768]
[1617527702685,0.10938585,57563.0,57561.0,0.42675768]
[1617527702882,2.8493,57562.0,57561.0,0.42675768]
[1617527709792,0.0021288,57565.0,57561.0,0.42675768]
[1617527709992,0.00516991,57567.0,57561.0,0.42675768]
[1617527709993,0.00212876,57566.0,57564.0,3.3706]
[1617527710395,0.00212872,57569.0,57565.0,0.68672163]
[1617527711195,0.00212872,57569.0,57568.0,0.35560183]
[1617527711396,0.00212872,57569.0,57568.0,0.46285838]
[1617527711595,0.00212872,57569.0,57568.0,3.69315838]
[1617527712195,0.00517045,57569.0,57568.0,3.75426801]
[1617527712998,0.002129,57569.0,57568.0,3.90065801]
[1617527713396,0.00212897,57570.0,57568.0,3.90065801]
[1617527713796,0.00212897,57570.0,57569.0,0.41671663]
[1617527714198,0.00212897,57570.0,57569.0,0.68671663]
[1617527714701,0.00212834,57572.0,57569.0,0.68671663]
[1617527714996,0.10938489,57573.0,57571.0,0.3553393]
[1617527715396,0.10938489,57573.0,57572.0,0.27]
[1617527715599,0.10938489,57573.0,57572.0,0.62536375]
[1617527715999,0.11242548,57573.0,57572.0,0.0611056]
[1617527716400,0.10938488,57573.0,57572.0,0.68645847]
[1617527718303,0.10725655,57573.0,57572.0,0.3311056]
[1617527718801,0.11242541,57573.0,57572.0,0.3311056]
[1617527719502,0.10725655,57573.0,57572.0,0.3311056]
[1617527719903,0.11749308,57573.0,57572.0,0.3311056]
[1617527720303,0.1124255,57573.0,57572.0,0.3311056]
[1617527721403,0.11749304,57573.0,57572.0,0.27]
[1617527721804,0.10725655,57573.0,57571.0,0.36608119]
[1617527722105,0.10725655,57573.0,57572.0,0.27]
[1617527722505,0.10725655,57573.0,57571.0,0.41201854]
[1617527722705,0.10725655,57573.0,57572.0,0.33110496]
[1617527722706,0.11749287,57573.0,57572.0,0.33110496]
[1617527723106,0.10725655,57573.0,57572.0,0.68776231]
[1617527723507,0.10725655,57573.0,57572.0,0.33110496]
[1617527724407,0.10725655,57573.0,57572.0,0.68787506]
[1617527724808,0.10725655,57573.0,57572.0,0.33110496]
[1617527725109,0.10725655,57573.0,57572.0,0.27]
[1617527725509,0.10725655,57573.0,57571.0,0.01]
[1617527725910,0.10725655,57573.0,57572.0,0.27]
[1617527726112,0.10725655,57573.0,57571.0,0.27]
[1617527726410,0.10725655,57573.0,57572.0,0.27]
[1617527726811,0.11749061,57573.0,57571.0,0.27]
[1617527727010,0.11749061,57573.0,57572.0,0.27]
[1617527727211,0.10725655,57573.0,57572.0,0.27]
[1617527727410,0.10725655,57573.0,57570.0,0.35675748]
[1617527727612,0.11749081,57573.0,57571.0,0.27]
[1617527728510,0.11749081,57573.0,57570.0,0.01]
[1617527728910,0.11749081,57573.0,57572.0,0.27]
[1617527729110,0.11749081,57573.0,57570.0,0.62678648]
[1617527729310,0.11749081,57573.0,57572.0,0.14917]
[1617527729510,0.10725655,57573.0,57572.0,3.43417]
[1617527729711,0.10725655,57573.0,57572.0,3.16417]
[1617527729912,0.10725655,57573.0,57572.0,3.52064754]
[1617527730111,0.10725655,57573.0,57572.0,3.79064754]
[1617527731615,0.10725655,57573.0,57572.0,4.22616066]
[1617527732018,0.10725655,57573.0,57572.0,1.21116066]
[1617527732419,0.10725655,57573.0,57572.0,0.77564754]
[1617527732618,0.10725655,57573.0,57572.0,0.62647754]
[1617527742827,0.10725655,57573.0,57572.0,0.74366754]
[1617527743828,0.00212497,57581.0,57572.0,0.74366754]
[1617527744029,0.00212497,57582.0,57572.0,0.74366754]
[1617527744430,0.00212497,57582.0,57575.0,0.3557422]
[1617527744829,0.00212497,57582.0,57576.0,0.27]
[1617527745030,0.00212497,57582.0,57581.0,2.5295]
[1617527745433,0.00212497,57582.0,57581.0,2.5395]
[1617527745632,0.10938152,57582.0,57581.0,2.64675655]
[1617527746836,0.10725655,57582.0,57581.0,2.64675655]
[1617527747736,0.1093833,57582.0,57581.0,2.64675655]
[1617527749034,0.10725655,57582.0,57581.0,2.64675655]
[1617527750639,0.1093833,57582.0,57581.0,2.64675655]
[1617527751037,0.10725655,57582.0,57581.0,2.64675655]
[1617527751937,0.10938329,57582.0,57581.0,2.64675655]
[1617527753138,0.10725655,57582.0,57581.0,2.64675655]
[1617527754439,0.10938311,57582.0,57581.0,2.64675655]
[1617527756848,0.10938311,57582.0,57581.0,0.11725655]
[1617527757349,3.64558311,57582.0,57581.0,0.11725655]
[1617527757848,0.10938311,57582.0,57581.0,0.11725655]
[1617527758848,0.41204189,57582.0,57581.0,4.15431127]
[1617527759349,0.41204189,57582.0,57581.0,3.71763617]
[1617527763556,0.41204189,57582.0,57581.0,4.15451041]
[1617527781180,0.77820302,57582.0,57581.0,4.15451041]
[1617527781880,0.77820302,57582.0,57581.0,0.91141041]
[1617527782080,1.02258884,57582.0,57581.0,0.91141041]
[1617527782680,0.65642771,57582.0,57581.0,0.91141041]
[1617527783082,0.65642771,57582.0,57581.0,0.97250692]
[1617527784383,1.02259158,57582.0,57581.0,0.97250692]
[1617527785688,1.02259158,57582.0,57581.0,3.59720692]
[1617527785888,0.65642771,57582.0,57581.0,3.59720692]
[1617527786286,1.02258999,57582.0,57581.0,3.68885226]
[1617527788088,0.41204189,57582.0,57581.0,3.68885226]
[1617527795599,0.41204189,57582.0,57581.0,3.83497226]
[1617527796000,0.41204189,57582.0,57581.0,4.33105177]
[1617527797719,0.30478534,57582.0,57581.0,4.33105177]
[1617527798304,0.55479155,57590.0,57581.0,1.70635177]
[1617527798305,0.0021354,57584.0,57581.0,1.70635177]
[1617527798702,0.0021354,57584.0,57583.0,1.28820879]
[1617527799105,0.0021354,57584.0,57583.0,1.55820879]
[1617527799902,0.0021354,57584.0,57583.0,1.61929663]
[1617527800302,0.10725655,57590.0,57583.0,1.61929663]
[1617527800303,0.00213302,57586.0,57583.0,1.61929663]
[1617527800703,0.00213302,57587.0,57583.0,1.61929663]
[1617527801104,0.00213302,57587.0,57585.0,1.28699671]
[1617527801503,0.10938949,57590.0,57586.0,1.5562479]
[1617527801702,0.10938949,57590.0,57589.0,3.6192]
[1617527802102,0.58480754,57594.0,57589.0,5.17514036]
[1617527802103,0.00213289,57592.0,57589.0,5.17514036]
[1617527803003,0.00213289,57593.0,57591.0,1.28569522]
[1617527803202,0.00213289,57593.0,57591.0,2.28569522]
[1617527803403,0.28,57594.0,57592.0,1.55510034]
[1617527803804,0.28,57594.0,57592.0,1.70779941]
[1617527804204,0.28,57594.0,57593.0,1.3456447]
[1617527804404,0.28,57594.0,57593.0,1.5107847]
[1617527804605,0.28,57594.0,57593.0,1.7807847]
[1617527810710,0.28,57594.0,57593.0,1.6156447]
[1617527811312,0.28,57594.0,57593.0,1.12158069]
[1617527815114,0.28,57594.0,57593.0,1.61414126]
[1617527816515,0.28,57594.0,57593.0,1.12158069]
[1617527816915,0.28,57594.0,57593.0,1.61402537]
[1617527818417,0.10725655,57602.0,57593.0,1.61402537]
[1617527818618,0.10725655,57602.0,57601.0,3.1713]
[1617527819017,0.10725655,57602.0,57601.0,3.4413]
[1617527819222,0.10725655,57602.0,57601.0,3.85666593]
[1617527820117,0.10938513,57602.0,57601.0,3.96392248]
[1617527820719,0.10725655,57602.0,57601.0,0.79262248]
[1617527821021,0.11749473,57602.0,57601.0,0.43833454]
[1617527821218,3.25119473,57602.0,57601.0,0.43833454]
[1617527821619,3.54516321,57602.0,57601.0,0.43833454]
[1617527822020,3.24095655,57602.0,57601.0,0.37725655]
[1617527822920,5.04508653,57602.0,57601.0,0.37725655]
[1617527823120,1.91138653,57602.0,57601.0,0.27]
[1617527823321,2.91138653,57602.0,57601.0,0.142]
[1617527823520,0.2,57601.0,57600.0,0.27]
[1617527823721,4.9136,57601.0,57600.0,0.27]
[1617527823921,4.9136,57601.0,57593.0,0.35509047]
[1617527824121,4.9136,57601.0,57597.0,0.27]
[1617527824122,5.62708582,57601.0,57597.0,0.27]
[1617527824322,5.62708582,57601.0,57600.0,0.14]
[1617527824522,5.62708582,57601.0,57594.0,0.14]
[1617527824721,5.62708582,57601.0,57593.0,0.62512271]
[1617527824923,4.7136,57601.0,57600.0,0.27]
[1617527825123,4.7136,57601.0,57595.0,0.01]
[1617527825323,2.16912663,57601.0,57594.0,0.27]
[1617527825523,2.16912663,57601.0,57593.0,0.35513573]
[1617527825722,0.30416335,57596.0,57595.0,0.27]
[1617527825923,1.80416335,57596.0,57595.0,0.27]
[1617527826123,1.9114199,57596.0,57594.0,0.27]
[1617527826324,1.92165656,57596.0,57595.0,0.27]
[1617527826524,1.61749321,57596.0,57595.0,0.27]
[1617527826723,2.61749321,57596.0,57594.0,0.27]
[1617527826925,0.11749321,57596.0,57595.0,0.27]
[1617527827324,0.11749321,57596.0,57594.0,0.6250619]
[1617527827525,0.11749321,57596.0,57595.0,0.27]
[1617527828026,0.10725655,57596.0,57595.0,0.27]
[1617527829327,0.10725655,57596.0,57595.0,0.6247564]
[1617527829328,0.10938477,57596.0,57595.0,0.6247564]
[1617527829729,0.10938477,57596.0,57595.0,0.3547564]
[1617527830128,0.10938477,57596.0,57595.0,0.6247564]
[1617527830728,0.10725655,57596.0,57595.0,0.6247564]
[1617527831841,0.10938485,57596.0,57595.0,0.6247564]
[1617527832840,1.60938485,57596.0,57595.0,0.6247564]
[1617527833050,1.72857485,57596.0,57595.0,0.6247564]
[1617527833239,5.43807485,57596.0,57595.0,0.6247564]
[1617527833432,5.44618285,57596.0,57595.0,0.27]
[1617527833830,5.43594655,57596.0,57595.0,0.27]
[1617527834332,5.44618268,57596.0,57595.0,0.27]
[1617527834532,2.73668268,57596.0,57595.0,0.27]
[1617527834731,2.73668268,57596.0,57595.0,2.9142]
[1617527834936,2.72644655,57596.0,57595.0,2.9142]
[1617527835333,2.72857484,57596.0,57595.0,3.2682906]
[1617527835531,1.72857484,57596.0,57595.0,3.2682906]
[1617527835732,0.10938484,57596.0,57595.0,3.2682906]
[1617527836935,0.10725655,57596.0,57595.0,3.2682906]
[1617527838437,0.10938558,57596.0,57595.0,3.2682906]
[1617527838838,0.10725655,57596.0,57595.0,3.2682906]
[1617527842043,0.11750112,57596.0,57595.0,3.2682906]
[1617527842244,0.11750112,57596.0,57595.0,0.6240906]
[1617527842444,0.41165222,57596.0,57595.0,0.6240906]
[1617527842845,0.11750113,57596.0,57595.0,0.6240906]
[1617527843644,0.10725655,57596.0,57595.0,0.6240906]
[1617527844047,0.4116536,57596.0,57595.0,0.6240906]
[1617527849254,0.77751965,57596.0,57595.0,3.7419906]
[1617527850156,1.02188,57596.0,57595.0,3.7419906]
[1617527855359,1.12419,57596.0,57595.0,3.7419906]
[1617527856863,1.12419,57596.0,57595.0,0.6240906]
[1617527857562,3.70699,57596.0,57595.0,0.6240906]
[1617527860566,3.70699,57596.0,57595.0,1.05797777]
[1617527861064,3.70699,57596.0,57595.0,0.6240906]
[1617527861565,5.20699,57596.0,57595.0,0.6240906]
[1617527861766,6.20699,57596.0,57595.0,0.6240906]
[1617527862165,6.20699,57596.0,57595.0,0.5871906]
[1617527862365,6.65435596,57596.0,57591.0,0.35565607]
[1617527862564,6.85435596,57596.0,57591.0,0.35565607]
[1617527862764,6.85435596,57596.0,57587.0,0.43469075]
[1617527862765,7.36272086,57596.0,57590.0,0.27071592]
[1617527863167,0.75245334,57591.0,57590.0,0.27071592]
[1617527863365,2.50465334,57591.0,57590.0,0.27071592]
[1617527863766,2.50465334,57591.0,57585.0,0.43488612]
[1617527864166,1.80506736,57586.0,57585.0,0.43488612]
[1617527864366,2.91232391,57586.0,57585.0,0.43488612]
[1617527864567,2.91232391,57586.0,57585.0,0.70488612]
[1617527864968,3.1567122,57586.0,57585.0,0.76598319]
[1617527865368,3.1567122,57586.0,57585.0,0.33109707]
[1617527869475,2.91232391,57586.0,57585.0,0.33109707]
[1617527877786,1.41232391,57586.0,57585.0,0.33109707]
[1617527877986,0.41232391,57586.0,57585.0,0.33109707]
[1617527880991,1.41232391,57586.0,57585.0,0.33109707]
[1617527882492,0.41232391,57586.0,57585.0,0.33109707]
[1617527887900,1.41232391,57586.0,57585.0,0.33109707]
[1617527888100,1.41232391,57586.0,57585.0,0.68754239]
[1617527888904,1.7778563,57586.0,57585.0,0.68754239]
[1617527890505,1.41232391,57586.0,57585.0,0.68754239]
[1617527891406,1.77785783,57586.0,57585.0,0.68754239]
[1617527892005,2.27785783,57586.0,57585.0,0.68754239]
[1617527892406,3.27785783,57586.0,57585.0,0.68754239]
[1617527892606,3.27785783,57586.0,57585.0,0.41754239]
[1617527892806,3.72464976,57586.0,57579.0,0.35693083]
[1617527893006,1.5,57580.0,57579.0,0.35693083]
[1617527893206,2.41465884,57580.0,57578.0,0.35706498]
[1617527893405,3.41465884,57580.0,57578.0,0.35706498]
[1617527893805,2.41465806,57579.0,57577.0,0.3570949]
[1617527894207,0.30430569,57578.0,57576.0,0.35663961]
[1617527894607,0.30430569,57578.0,57577.0,3.4915]
[1617527895208,0.01024113,57578.0,57577.0,3.90907848]
[1617527895608,0.01024214,57579.0,57577.0,3.90907848]
[1617527896007,0.01024214,57579.0,57578.0,0.41758289]
[1617527896407,0.01024214,57579.0,57578.0,0.68758289]
[1617527896611,0.10725655,57579.0,57578.0,0.68758289]
[1617527898811,1.11749855,57579.0,57578.0,0.68758289]
[1617527899012,2.61749855,57579.0,57578.0,0.68758289]
[1617527899613,2.91158255,57579.0,57578.0,0.33110191]
[1617527900213,2.91158255,57579.0,57578.0,0.27]
[1617527900813,1.41158255,57579.0,57578.0,0.27]
[1617527901013,1.41158255,57579.0,57578.0,0.62646428]
[1617527901915,1.11749878,57579.0,57578.0,0.62646428]
[1617527902215,1.41158168,57579.0,57578.0,0.62646428]
[1617527902415,0.41158168,57579.0,57578.0,0.62646428]
[1617527902616,0.10725655,57579.0,57578.0,0.62646428]
[1617527903017,0.11749872,57579.0,57578.0,0.62646428]
[1617527904818,0.27051872,57579.0,57578.0,0.62646428]
[1617527905019,1.27051872,57579.0,57578.0,0.62646428]
[1617527906221,0.27051872,57579.0,57578.0,0.62646428]
[1617527906823,0.11749872,57579.0,57578.0,0.62646428]
[1617527907022,0.41170142,57579.0,57578.0,0.62646428]
[1617527907823,0.11750267,57579.0,57578.0,0.62646428]
[1617527909825,0.11750264,57579.0,57578.0,0.62646428]
[1617527911527,1.11750264,57579.0,57578.0,0.62646428]
[1617527911930,1.10725655,57579.0,57578.0,0.62646428]
[1617527912329,1.11750272,57579.0,57578.0,0.62646428]
[1617527912729,0.11750272,57579.0,57578.0,0.62646428]
[1617527914433,3.42580272,57579.0,57578.0,0.62646428]
[1617527915533,0.10725655,57579.0,57578.0,0.62646428]
[1617527916333,1.10725655,57579.0,57578.0,0.62646428]
[1617527916533,1.41178719,57579.0,57578.0,0.62646428]
[1617527917735,1.77775483,57579.0,57578.0,1.06302648]
[1617527918637,1.77775483,57579.0,57578.0,0.62646428]
[1617527919939,0.77775483,57579.0,57578.0,0.62646428]
[1617527921341,1.02216893,57579.0,57578.0,0.62646428]
[1617527921741,1.02216893,57579.0,57578.0,1.06307635]
[1617527922744,2.02216893,57579.0,57578.0,1.06307635]
[1617527924648,2.02216893,57579.0,57578.0,0.62646428]
[1617527926550,2.02216893,57579.0,57578.0,1.06369029]
[1617527926750,1.02216893,57579.0,57578.0,1.06369029]
[1617527926950,2.02216893,57579.0,57578.0,1.06369029]
[1617527927753,2.02216893,57579.0,57578.0,0.62646428]
[1617527928553,1.02216893,57579.0,57578.0,0.62646428]
[1617527929054,1.02216893,57579.0,57578.0,1.06354107]
[1617527929454,2.02216893,57579.0,57578.0,1.06354107]
[1617527930155,2.02216893,57579.0,57578.0,0.62646428]
[1617527930656,2.02216893,57579.0,57578.0,1.06346058]
[1617527932059,2.02216893,57579.0,57578.0,0.62646428]
[1617527933162,1.02216893,57579.0,57578.0,1.06357006]
[1617527933662,1.02216893,57579.0,57578.0,0.62646428]
[1617527934461,1.02216893,57579.0,57578.0,1.06354255]
[1617527934863,1.02216893,57579.0,57578.0,0.62646428]
[1617527935464,1.02216893,57579.0,57578.0,1.06346322]
[1617527938768,1.02216893,57579.0,57578.0,1.17071977]
[1617527940170,1.14296893,57579.0,57578.0,1.17071977]
[1617527940371,2.14296893,57579.0,57578.0,1.17071977]
[1617527940773,1.14296893,57579.0,57578.0,1.17071977]
[1617527941371,1.02216893,57579.0,57578.0,1.17071977]
[1617527942674,0.41178719,57579.0,57578.0,1.66802372]
[1617527943074,0.41178719,57579.0,57578.0,4.87472372]
[1617527943277,0.41178719,57579.0,57578.0,1.66802372]
[1617527943475,1.41178719,57579.0,57578.0,1.66802372]
[1617527943675,1.90899606,57579.0,57578.0,1.66802372]
[1617527944075,1.90899606,57579.0,57578.0,1.17071977]
[1617527946275,1.90899606,57579.0,57578.0,1.66826177]
[1617527947175,1.90899606,57579.0,57578.0,1.17071977]
[1617527949478,0.90899606,57579.0,57578.0,1.17071977]
[1617527949679,0.41178719,57579.0,57578.0,1.66811311]
[1617527951980,4.14448719,57579.0,57578.0,1.66811311]
[1617527956686,5.14448719,57579.0,57578.0,1.66811311]
[1617527959292,4.14448719,57579.0,57578.0,1.66811311]
[1617527960093,4.51087865,57579.0,57578.0,1.66811311]
[1617527962395,4.14448719,57579.0,57578.0,1.66811311]
[1617527963900,0.41178719,57579.0,57578.0,1.66811311]
[1617527964299,0.41178719,57579.0,57578.0,5.16191311]
[1617527965000,0.41178719,57579.0,57578.0,5.25356405]
[1617527965900,0.41178719,57579.0,57578.0,1.75976405]
[1617527966100,0.41178719,57579.0,57578.0,1.66811311]
[1617527966701,3.42498719,57579.0,57578.0,1.66811311]
[1617527967903,0.41178719,57579.0,57578.0,1.66811311]
[1617527968102,0.41178719,57579.0,57578.0,4.97353311]
[1617527968303,0.30453064,57579.0,57578.0,4.97353311]
[1617527968904,0.00213647,57579.0,57578.0,5.06517703]
[1617527969107,0.01027542,57581.0,57578.0,5.06517703]
[1617527969108,0.00213641,57581.0,57578.0,5.06517703]
[1617527969604,0.00213631,57583.0,57578.0,5.62173488]
[1617527970205,0.00213631,57583.0,57582.0,1.29198662]
[1617527970705,0.00213631,57583.0,57582.0,1.56198662]
[1617527971106,0.00213631,57583.0,57582.0,1.62307758]
[1617527974111,0.00213629,57584.0,57582.0,1.62307758]
[1617527975212,0.00213312,57586.0,57583.0,1.3511674]
[1617527975611,0.00213312,57586.0,57584.0,0.27]
[1617527975813,0.00213277,57587.0,57585.0,4.53221758]
[1617527976211,0.00213277,57587.0,57586.0,0.27]
[1617527976412,0.00213277,57587.0,57586.0,1.21644517]
[1617527976813,0.00517959,57588.0,57586.0,1.1248082]
[1617527977015,2.83765655,57587.0,57586.0,1.1248082]
[1617527977213,2.84283626,57587.0,57586.0,1.1248082]
[1617527977614,2.83765655,57587.0,57586.0,1.1248082]
[1617527978915,2.84283623,57587.0,57586.0,1.23206475]
[1617527979819,2.83978937,57587.0,57586.0,1.23206475]
[1617527980417,0.10938937,57587.0,57586.0,1.23206475]
[1617527980817,0.10938937,57587.0,57586.0,3.99516475]
[1617527981817,0.10938937,57587.0,57586.0,4.08680176]
[1617527984823,0.10725655,57587.0,57586.0,4.5828078]
[1617527985322,0.10938937,57587.0,57586.0,4.08680176]
[1617527986726,0.10725655,57587.0,57586.0,4.08680176]
[1617527987628,0.10938858,57587.0,57586.0,4.08680176]
[1617527990030,0.10938858,57587.0,57586.0,4.13860176]
[1617527990631,0.10725655,57587.0,57586.0,4.13860176]
[1617527990831,0.10725655,57587.0,57586.0,4.08680176]
[1617527991431,0.10725655,57587.0,57586.0,4.19953176]
[1617527992734,0.10725655,57587.0,57586.0,4.69515017]
[1617527993131,0.002132,57590.0,57586.0,4.69515017]
[1617527993833,0.002132,57590.0,57589.0,0.79294373]
[1617527994233,0.002132,57590.0,57589.0,1.06294373]
[1617527994833,0.00213191,57592.0,57589.0,1.06294373]
[1617527995336,0.00213191,57592.0,57591.0,0.79265422]
[1617527995733,0.00213191,57592.0,57591.0,1.06265422]
[1617527996136,0.00213191,57592.0,57591.0,1.12374245]
[1617527996835,0.00213071,57593.0,57591.0,1.12374245]
[1617527997036,0.00213071,57593.0,57592.0,0.10725655]
[1617527997436,0.00213069,57594.0,57593.0,3.3657]
[1617527997838,0.10938737,57595.0,57593.0,4.48873543]
[1617527998236,0.00213082,57596.0,57593.0,1.21466449]
[1617527998637,0.00213082,57596.0,57595.0,3.1181]
[1617527999038,0.00213069,57600.0,57595.0,4.33201153]
[1617527999439,0.00213069,57600.0,57595.0,5.33201153]
[1617527999638,0.00213069,57600.0,57596.0,1.0]
[1617527999940,0.00213047,57604.0,57599.0,1.28446702]
[1617528000139,0.00213047,57604.0,57599.0,1.43568702]
[1617528000343,0.00213045,57605.0,57603.0,0.79036789]
[1617528000740,0.00213041,57606.0,57604.0,0.27]
[1617528001139,0.00213041,57606.0,57605.0,0.10725655]
[1617528001340,0.00213041,57606.0,57605.0,0.95859043]
[1617528001539,0.00213041,57606.0,57605.0,1.22859043]
[1617528001739,0.00213041,57606.0,57605.0,1.16751595]
[1617528002140,0.00213041,57607.0,57605.0,1.22858995]
[1617528002540,0.00213041,57607.0,57606.0,0.85142274]
[1617528002942,0.00213041,57607.0,57606.0,1.12142274]
[1617528004843,0.00213033,57608.0,57606.0,1.12142274]
[1617528005243,0.00213033,57608.0,57607.0,0.85122572]
[1617528005545,0.01024586,57610.0,57607.0,0.85122572]
[1617528005546,0.00213023,57610.0,57607.0,0.85122572]
[1617528005742,0.00213023,57610.0,57607.0,1.12122572]
[1617528006543,0.00213023,57610.0,57609.0,0.78990945]
[1617528006743,0.00213023,57610.0,57609.0,1.78990945]
[1617528006943,0.00213023,57610.0,57609.0,2.05990945]
[1617528007142,0.01024496,57615.0,57609.0,2.05990945]
[1617528007143,0.00213014,57612.0,57609.0,2.05990945]
[1617528007342,0.00213014,57612.0,57609.0,2.12097607]
[1617528007544,0.0051732,57614.0,57610.0,1.0]
[1617528007545,0.00213014,57613.0,57610.0,1.0]
[1617528007742,0.00213014,57613.0,57609.0,2.12097607]
[1617528007944,0.00213014,57613.0,57611.0,1.05933094]
[1617528008144,0.00213014,57613.0,57611.0,1.17754094]
[1617528008344,0.00213012,57614.0,57612.0,0.85030181]
[1617528008745,0.00213012,57614.0,57613.0,0.78926231]
[1617528009145,0.00213012,57614.0,57613.0,1.22758517]
[1617528011150,0.00212274,57621.0,57613.0,0.43832286]
[1617528011947,0.00212274,57621.0,57613.0,0.37725655]
[1617528012348,0.00212274,57620.0,57613.0,0.37725655]
[1617528013250,0.00212274,57620.0,57619.0,0.10725655]
[1617528013650,0.00212274,57620.0,57619.0,0.37725655]
[1617528015351,0.00212274,57620.0,57619.0,3.66315655]
[1617528015553,0.00212274,57620.0,57619.0,3.82603655]
[1617528015954,0.00212253,57621.0,57619.0,3.82603655]
[1617528016354,0.00212251,57623.0,57619.0,3.82603655]
[1617528017155,0.00727719,57624.0,57619.0,3.82603655]
[1617528017356,0.00212251,57624.0,57619.0,3.82603655]
[1617528017655,0.00212251,57624.0,57619.0,0.54013655]
[1617528018056,0.00212251,57624.0,57622.0,3.202]
[1617528018457,0.00212251,57624.0,57623.0,0.27]
[1617528018857,0.05452251,57624.0,57623.0,0.27]
[1617528019058,0.0524,57624.0,57623.0,0.27]
[1617528019658,0.00212251,57625.0,57623.0,0.27]
[1617528021262,5.53334655,57624.0,57620.0,0.27]
[1617528021461,5.54355462,57624.0,57620.0,0.27]
[1617528021662,1.75825462,57624.0,57612.0,0.35336183]
[1617528021863,1.75825462,57624.0,57613.0,0.27]
[1617528021864,1.01020021,57621.0,57613.0,0.27]
[1617528022263,1.01020021,57621.0,57610.0,0.27]
[1617528022264,0.00212088,57618.0,57610.0,0.27]
[1617528022463,0.00212088,57618.0,57614.0,0.27]
[1617528022664,0.00212086,57619.0,57614.0,0.27]
[1617528022863,0.00212086,57619.0,57609.0,0.10725655]
[1617528022864,0.00212086,57619.0,57611.0,0.27]
[1617528023065,0.00212084,57618.0,57611.0,0.27]
[1617528023264,0.10725655,57612.0,57610.0,0.27]
[1617528023466,0.10725655,57612.0,57609.0,0.10725655]
[1617528023665,0.23540655,57612.0,57610.0,0.27]
[1617528027568,0.10725655,57612.0,57610.0,0.27]
[1617528029673,0.10725655,57612.0,57610.0,0.62331523]
[1617528032276,0.10725655,57612.0,57610.0,0.27]
[1617528032576,0.10725655,57612.0,57610.0,0.62340815]
[1617528035079,0.10725655,57612.0,57611.0,0.35350081]
[1617528035479,0.10725655,57612.0,57611.0,0.62350081]
[1617528037297,0.00212321,57621.0,57611.0,0.62350081]
[1617528037509,0.00212321,57621.0,57619.0,2.656]
[1617528037689,0.00212321,57621.0,57619.0,2.814]
[1617528037891,0.00515637,57622.0,57619.0,2.814]
[1617528037892,0.00212316,57622.0,57620.0,0.27]
[1617528038288,0.0102114,57624.0,57620.0,0.27]
[1617528038289,0.00212316,57624.0,57620.0,0.27]
[1617528039187,0.00212313,57625.0,57623.0,0.10725655]
[1617528039588,0.00212313,57625.0,57624.0,0.27]
[1617528041390,0.00212313,57625.0,57624.0,3.574]
[1617528041693,0.10937962,57626.0,57624.0,3.574]
[1617528042992,0.10725655,57626.0,57624.0,3.574]
[1617528043192,0.10725655,57626.0,57624.0,0.27]
[1617528043794,0.1093796,57626.0,57625.0,2.7621]
[1617528044194,0.1093796,57626.0,57625.0,3.0321]
[1617528044395,0.10725655,57626.0,57625.0,3.0321]
[1617528046997,0.11241834,57626.0,57625.0,3.0321]
[1617528053006,0.16501834,57626.0,57625.0,3.0321]
[1617528053207,0.11241834,57626.0,57625.0,3.0321]
[1617528053808,0.10938191,57626.0,57625.0,3.0321]
[1617528054210,0.10725655,57626.0,57625.0,3.0321]
[1617528055009,0.10938189,57626.0,57625.0,3.0321]
[1617528055209,0.10938189,57626.0,57625.0,0.27]
[1617528055410,0.00212534,57626.0,57625.0,3.8111]
[1617528055609,0.00516153,57627.0,57625.0,3.5411]
[1617528055610,0.00212527,57627.0,57625.0,3.5411]
[1617528055809,0.00212527,57627.0,57625.0,4.5411]
[1617528056010,0.00212515,57632.0,57625.0,5.16391333]
[1617528056210,0.00212515,57632.0,57626.0,1.0]
[1617528056410,0.00212512,57633.0,57626.0,1.56882551]
[1617528056610,0.00212512,57633.0,57632.0,3.1424]
[1617528056809,0.36440663,57639.0,57632.0,4.49482004]
[1617528056810,0.00212494,57637.0,57632.0,4.49482004]
[1617528057011,0.00212494,57637.0,57632.0,4.76482004]
[1617528057213,0.00213166,57634.0,57633.0,1.0]
[1617528057410,0.00213166,57634.0,57633.0,1.25986597]
[1617528057610,0.00213166,57634.0,57633.0,0.26986597]
[1617528057811,0.00213156,57635.0,57633.0,1.2088222]
[1617528058111,0.00213156,57635.0,57634.0,0.78494922]